Cogmind - Beta 17.1 @@@ ROGUE MODE // 2026.08.30 @ 22:47:17 Player: Skergy Result: Sacrificed to X0-1V1 Performance ------------- Evolutions (0) 0 Regions Visited (1) 200 Robots Destroyed (18) 90 Value Destroyed (458) 458 Prototype IDs (0) 0 Alien Tech Used (0) 0 Bonus (0) 0 TOTAL SCORE: 748 Bonus ------- None Cogmind --------- Core Integrity 0/250 Matter 290/300 Energy 250/250 System Corruption 0% Temperature Cool (0) Movement Rolling (115) Ox1 Location -10/Materials Parts ------- > --- POWER (1) -------- Ion Engine > --- PROPULSION (2) --- Aluminum Leg Compact Wheel > --- UTILITY (2) ------ Large Storage Unit Targeting Computer > --- WEAPON (2) ------- Light Assault Rifle > --- INVENTORY (15) --- Ion Engine Light Ion Engine Aluminum Leg Hover Unit Improved Terrain Scanner Terrain Scan Processor Mining Laser Peak State ------------ > --- POWER ------------ Light Ion Engine > --- PROPULSION ------- Light Treads Light Treads > --- UTILITY ---------- Small Storage Unit Improved Terrain Scanner > --- WEAPON ----------- Assault Rifle Light Assault Rifle > --- INVENTORY -------- Ion Engine Aluminum Leg Aluminum Leg Compact Wheel Medium Laser [Rating: 9] Favorites ----------- Power Ion Engine Engine Ion Engine Propulsion Light Treads Treads Light Treads Leg Aluminum Leg Wheel Compact Wheel Flight Unit Flight Unit Utility Large Storage Unit Device Seismic Detector Storage Large Storage Unit Processor Targeting Computer Weapon Light Assault Rifle Energy Gun Medium Laser Ballistic Gun Light Assault Rifle Build | -11 -10 ------- Run | Yrd Mat Slots Evolved . | . . Power . | . . Propulsion . | . . Utility . | . . Weapon . | . . Parts Attached 21 | 8 13 Power 3 | 1 2 Engine 3 | 1 2 Core . | . . Reactor . | . . Propulsion 6 | 2 4 Treads 2 | 2 . Leg 2 | . 2 Wheel 1 | . 1 Hover . | . . Flight 1 | . 1 Utility 6 | 3 3 Device 3 | 2 1 Storage 2 | 1 1 Processor 1 | . 1 Hackware . | . . Protection . | . . Artifact . | . . Weapon 6 | 2 4 Energy Gun 2 | . 2 Energy Cannon . | . . Ballistic Gun 4 | 2 2 Ballistic Cannon . | . . Launcher . | . . Special Weapon . | . . Impact Weapon . | . . Slashing Weapon . | . . Piercing Weapon . | . . Special Melee Weapon . | . . Unidentified Prototypes . | . . Parts Lost 11 | . 11 Power 1 | . 1 Propulsion 3 | . 3 Utility 2 | . 2 Weapon 5 | . 5 Highest Loss Streak 4 | . 4 To Critical Strikes . | . . Average Backups 7 | 4 8 Power 1 | . 1 Propulsion 2 | 2 2 Utility 1 | . 1 Weapon 2 | 1 2 Tool/Special . | . . Unused Backups 5 | . 5 Power 1 | . 1 Propulsion 2 | . 2 Utility 1 | . 1 Weapon 1 | . 1 Tool/Special . | . . Average Slot Usage (%) 81 | . 81 Engine 9 | . 9 Treads 7 | . 7 Leg 9 | . 9 Wheel 3 | . 3 Device 9 | . 9 Storage 14 | . 14 Processor 2 | . 2 Energy Gun 8 | . 8 Ballistic Gun 15 | . 15 Peak Build Rating 9 | 9 8 Average Rating 6 | 5 6 On Entrance 3 | . 7 Avg Prop Armor Cover (%) 12 | . 12 Naked Turns . | . . Heaviest Build 30 | 12 30 Greatest Support 40 | 40 40 Greatest Overweight (x) 9 | . 9 Average Overweight (x) 1 | . 1 Largest Inventory Capacity 15 | 8 15 Average Capacity 13 | 6 14 Most Carried 9 | 7 9 Average Carried 7 | 5 8 Final Capacity 15 | 8 15 Final Carried 7 | 7 7 Class Distribution -------------------- 100% | Mutant Dominant Class ---------------- Mutant | -10/Materials Resources | -11 -10 ----------- Run | Yrd Mat Matter Collected 579 | 159 420 Remotely . | . . Salvage Created 602 | 47 555 Parts 32 | 7 25 Haulers Intercepted . | . . Recyclers Shooed 3 | 2 1 Parts Field Recycled . | . . Retrieved Matter . | . . Parts Self-Destructed . | . . Prevented . | . . Parts Restored . | . . Kills | -11 -10 ------- Run | Yrd Mat Combat Hostiles Destroyed 13 | . 13 Guns 12 | . 12 AOE 1 | . 1 Classes Destroyed 5 | 1 4 Tunneler 2 | 2 . Recycler 1 | . 1 Watcher 2 | . 2 Swarmer 3 | . 3 Grunt 10 | . 10 Best Kill Streak 3 | 1 3 Combat Bots Only 3 | . 3 Max Kills in Single Turn 2 | 1 2 Gunslinging . | . . Exploded 1 | . 1 Melee . | . . Uniques/NPCs Destroyed . | . . Combat | -11 -10 -------- Run | Yrd Mat Hostile Shots Fired 124 | . 124 Missed 27 | . 27 Hits 97 | . 97 Projectile 97 | . 97 Critical Strikes 1 | . 1 Damage Taken 1121 | . 1121 Core 127 | . 127 Absorbed by Shields . | . . Core Remaining (%) 100 | 100 . Volleys Fired 73 | 12 61 Largest 2 | 2 2 Hottest 90 | 40 90 Shots Fired 131 | 24 107 Gun 131 | 24 107 Cannon . | . . Launcher . | . . Special . | . . Kinetic 101 | 24 77 Thermal 18 | . 18 Explosive . | . . Electromagnetic 12 | . 12 Robot Hit Streak 8 | 3 8 Robot Miss Streak 4 | 3 4 Penetration Max . | . . Secondary Targets 1 | . 1 Max Gunslinging Chain 1 | . 1 Shots Hit Robots 82 | 12 70 Core Hits 33 | 3 30 Critical Kills . | . . Critical Parts Destroyed 1 | . 1 Critical Strikes 2 | . 2 Burn 1 | . 1 Destroy 1 | . 1 Melee Attacks . | . . Impact . | . . Slashing . | . . Piercing . | . . Sneak Attacks . | . . Combat Hostiles . | . . Follow-up Attacks . | . . Damage Inflicted 1035 | 116 919 Guns 936 | 116 820 Cannons . | . . Explosions 99 | . 99 Melee . | . . Ramming . | . . Kinetic 674 | 116 558 Thermal 234 | . 234 Explosive . | . . Electromagnetic 127 | . 127 Impact . | . . Slashing . | . . Piercing . | . . Highest Corruption . | . . Average Corruption . | . . Corruption Purged . | . . Corruption Blocked . | . . Overload Shots . | . . Overflow Damage . | . . Projectiles . | . . Explosions . | . . Melee . | . . Knockbacks . | . . Impact . | . . Kinetic . | . . Secondary . | . . Self-Inflicted Damage 38 | . 38 Shots 1 | . 1 Rammed . | . . Targets Rammed . | . . Kicked . | . . Crushed . | . . Highest Temperature 144 | . 144 Average Temperature 34 | . 34 Received Heat Transfer 477 | . 477 Siege Activations . | . . Martial Activations . | . . Shielding Activations . | . . Robots Disrupted . | . . Combat Hostiles . | . . Robots Corrupted . | . . Combat Hostiles . | . . Parts Fried 1 | . 1 Impact Corruptions . | . . Robots Melted . | . . Combat Hostiles . | . . Parts Melted 1 | . 1 Heat Transferred 581 | . 581 Parts Sabotaged . | . . Parts Stolen . | . . Parts Stripped . | . . Power Chain Reactions 1 | . 1 Alert | -11 -10 ------- Run | Yrd Mat Maximum Alert Level . | . . Low Security (%) 100 | 100 100 Level 1 . | . . Level 2 . | . . Level 3 . | . . Level 4 . | . . Level 5 . | . . High Security . | . . Max Security . | . . Peak Influence 105 | 5 105 Initial . | . . Average 18 | . 20 Influence Increases 403 | 10 393 Destroy 0b10 Robot/C 260 | . 260 Destroy 0b10 Robot/NC 25 | 10 15 Destroy Leader 54 | . 54 Successful Hack 15 | . 15 Disable Machine 15 | . 15 Destroy Structure 4 | . 4 Lose Combat Pursuer 30 | . 30 Influence Decreases 403 | 10 393 Time Decay 296 | 10 286 Lost Part 107 | . 107 Squads Dispatched 3 | . 3 Investigation 2 | . 2 Extermination . | . . Reinforcement 1 | . 1 Assault . | . . Garrison . | . . Intercept . | . . Searches Triggered . | . . Construction Impeded . | . . Haulers Reinforced . | . . Active Scanning Responses . | . . Cargo Convoy Interrupts . | . . Stealth | -11 -10 --------- Run | Yrd Mat Distress Signals 3 | . 3 Communications Jammed . | . . Distress Signals . | . . Times Spotted 24 | . 24 Peak Tracking Total 4 | . 4 Tactical Retreats 2 | . 2 Traps | -11 -10 ------- Run | Yrd Mat Traps Triggered 2 | . 2 Indirectly . | . . Trap Hack Attempts . | . . Triggered . | . . Disarmed . | . . Reprogrammed . | . . Reused . | . . Traps Extracted . | . . Installed . | . . Triggered . | . . Machines | -11 -10 ---------- Run | Yrd Mat Machines Disabled 1 | . 1 Max in Single Turn 1 | . 1 Machines Repaired . | . . Machines Dismantled . | . . Machines Sabotaged . | . . Overloaded Fab Kills . | . . Hacking | -11 -10 --------- Run | Yrd Mat Machines Accessed 4 | . 4 Terminals 3 | . 3 Fabricators . | . . Repair Stations . | . . Recycling Units 1 | . 1 Scanalyzers . | . . Garrison Access . | . . Total Hacks 10 | . 10 Successful 6 | . 6 Failed 4 | . 4 Catastrophic . | . . Database Lockouts . | . . Manual 11 | . 11 Terminals 7 | . 7 Fabricators . | . . Repair Stations . | . . Recycling Units 3 | . 3 Scanalyzers . | . . Garrison Access . | . . Terminal Hacks . | . . Fabricator Hacks . | . . Repair Station Hacks . | . . Recycling Unit Hacks . | . . Scanalyzer . | . . Garrison Access Hacks . | . . Unauthorized Hacks 6 | . 6 Terminals 4 | . 4 Botnet 3 | . 3 Operators 1 | . 1 Fabricators . | . . Repair Stations . | . . Recycling Units 2 | . 2 Recyclers 1 | . 1 Mask 1 | . 1 Scanalyzers . | . . Garrison Access . | . . Data Cores Recovered . | . . Used . | . . Hacking Detections 4 | . 4 Full Trace Events . | . . Feedback Events . | . . Feedback Blocked . | . . Robot Schematics Acquired . | . . Robots Built . | . . Authchips . | . . Time . | . . Total Robot Build Rating . | . . Part Schematics Acquired . | . . Parts Built . | . . Authchips . | . . Time . | . . Total Part Build Rating . | . . Part Studies Acquired . | . . Parts Repaired . | . . Time . | . . Parts Recycled . | . . Recycled Matter . | . . Retrieved Matter . | . . Retrieved Components . | . . Parts Scanalyzed . | . . Part Schematics Acquired . | . . Parts Damaged . | . . Bothacking | -11 -10 ------------ Run | Yrd Mat Used RIF Installer . | . . Robots Hacked . | . . Non-combat . | . . Combat . | . . Robot Hacks Applied . | . . Relay Couplers Released . | . . Fabnet Peak Effective % . | . . Robots Rewired . | . . Allies Hacked . | . . Hacks Repelled . | . . Allies | -11 -10 -------- Run | Yrd Mat Total Allies . | . . Largest Group . | . . Highest-Rated Group . | . . Highest-Rated Ally . | . . Total Orders . | . . Ally Attacks . | . . Total Damage . | . . Kills . | . . Allies Corrupted . | . . Allies Melted . | . . Intel | -11 -10 ------- Run | Yrd Mat Active Infowar (turns) 690 | 50 640 Terrain 28 | 28 . Seismic 662 | 22 640 Robot Analysis Total . | . . Derelict Logs Recovered . | . . Drone Launches . | . . Drone Recoveries . | . . Exploration | -11 -10 ------------- Run | Yrd Mat Turns Passed 1044 | 119 925 Spaces Moved 416 | 50 366 Core 20 | 11 9 Treads 137 | 39 98 Legs 117 | . 117 Wheels 139 | . 139 Hover . | . . Flight 3 | . 3 Fastest Speed 50 | 50 115 Average Speed 179 | 135 185 Slowest Speed 500 | 160 500 Overloaded Moves . | . . Propulsion Burnouts . | . . Robots Hopped . | . . Potential Cave-ins . | . . Cave-ins Triggered . | . . Exploration Rate (%) 37 | 4 71 Regions Visited 1 Branch Regions . Pre-discovered Areas . | . . Known Exits Taken . | . . Unknown Exits Taken 1 | 1 . Scrap Searched . | . . Spaces Dug . | . . Terrain Destroyed 3 | . 3 Melee . | . . Projectile . | . . AOE 3 | . 3 Terrain Rammed . | . . Walls Destroyed . | . . Machines Disabled . | . . Actions | -11 -10 --------- Run | Yrd Mat Total 587 | 76 511 Wait 61 | . 61 Move 415 | 49 366 Hop . | . . Pick Up 12 | 7 5 Fast Attach 12 | 7 5 Attach 6 | . 6 Detach 1 | . 1 Swap 5 | 1 4 Drop 2 | . 2 Fire 73 | 12 61 Melee . | . . Ram . | . . Kick . | . . Crush . | . . Escape Stasis . | . . Rewire . | . . Trap . | . . Miscellaneous . | . . Route ------- -11/Scrapyard -10/Materials (discovered 3 exits: [*Mat x2] / [*Sub]) History --------- Turn | Location | Event 10 | -11/Scrapyard | Discovered new exit (range 15) 120 | -11/Scrapyard | Entered Materials 324 | -10/Materials | Build established: Mutant 408 | -10/Materials | Lost 4 parts (1p2n1w) 504 | -10/Materials | Discovered new exit (range 12) 794 | -10/Materials | Lost 3 parts (1n2w) 822 | -10/Materials | Core integrity fell below 50% 844 | -10/Materials | Lost 3 parts (1u2w) 927 | -10/Materials | Discovered new exit (range 9) 1039 | -10/Materials | Discovered new exit (range 4) 1045 | -10/Materials | Made a sacrifice at D.C.S.S. Altar Unit 1045 | -10/Materials | Sacrificed to X0-1V1 Last Messages --------------- 01012_ T-07 Excavator is excavating. 01012_ U-05 Engineer lays Concrete. 01013_ U-05 Engineer builds a Wall. 01017_ T-07 Excavator is excavating. 01019_ U-05 Engineer lays Concrete. 01021_ T-07 Excavator is excavating. 01021_ U-05 Engineer lays Concrete. 01025_ T-07 Excavator is excavating. 01026_ U-05 Engineer lays Concrete. 01027_ U-05 Engineer builds a Wall. 01034_ T-07 Excavator is excavating. 01036_ U-05 Engineer lays Concrete. 01037_ U-05 Engineer builds a Wall. 01038_ T-07 Excavator is excavating. 01039_ EXIT=FOUND 01041_ U-05 Engineer lays Concrete. 01042_ T-07 Excavator is excavating. 01043_ U-05 Engineer lays Concrete. 01045_ U-05 Engineer builds a Wall. 01045_ Connecting with D.C.S.S. Altar Unit... Map ----- +----------------------------------------------------+ | # #?????????????????????????????? | | # """ #?????????????????????????????? | | + """ #????????????????????????? ???? | | # """ #???????????????????????? #???? | | ########??????????#######????? #????? | | ##????????????????# ##### #????? | | ################## #????? | | #????? | | #????? | | ####?????????? | | ################### ##????????????? | | ##??????????######## #?????????????? | | #???????????# !## #####?????????? | | #???????????# " ## #?????????? | | #???????????# """ ## #?????????? | | #???????????# """ # ###???????? | | #???????????# """ # #???????? | | #???????????# "" + +???????? | | #???????????# """ # #???????? | | #???????????# "" # ## ###???????? | | #???????????# """ ##### # #????????? | | #######?????# " #???# # #????????? | | # """ #?????+ #???# # #????????? | | # "R" #?????# ! #???# # #????????? | | # " " + ??#######???# # t #????????? | | # # ????????????# #@uu#????????? | | # # #???????????? #X#<#????????? | | # [ # #???????????? #####????????? | | + # #???????????# #????????????? | | # """ # +???????????# #????????????? | | # """ # #???????????# #????????????? | | # """ # #???????????# #????????????? | | # # #???????????# #????????????? | | + # #???????????# ###########??? | | ####### #???????????# ## #??? | | ##????# #???????????# ## """ #??? | | ####### ############# ##*"Y" #??? | | =#= #??? | | r ! = +![ #??? | | !|! [#[""" #??? | | ##+##############o [#=""" #??? | | # #????????# # """ #??? | | """ # #????????# # #??? | | """ + """#????????# ##########??? | | """ # """#???####?# #???????????? | | """ # """#??##! #?# #??########?? | | # #??#! ### #### ! #?? | | ########??#! # #?? | | """ #?????????#! # #?? | | """ #?????????#! + """ #?? | +----------------------------------------------------+ Best States ------------- Heat Dissipation 25 Energy Generation 10 Energy Capacity 250 Matter Stores 300 Matter Capacity 300 Sight Range 16 Terrain Scan Range 16 Terrain Scan Density 10 Evasion (%) 50 Targeting Accuracy 5 Recoil Reduction 2 Item Schematics ----------------- None Robot Schematics ------------------ None Fabricated ------------ Nothing Repaired ---------- Nothing Studied --------- None Alien Tech Used ----------------- None Achievements -------------- None Challenges ------------ None Game ------ Seed CooledSwordPick Manual? 0 Play Time 00:20:59 Cumulative 156.4 hours Start 2026.08.30 @ 18:06:27 End 2026.08.30 @ 22:47:17 Sessions 4 Manual Loads 0 Difficulty Rogue Special Mode None Game No. 164 Rogue 164 Adventurer 0 Explorer 0 Win Type - Total 5 Types 4/0/1/0/0/0/0/0/0/0 Lore% 71 Gallery% 59 Achievement% 46 Wizard Run 0 Options --------- Layout 2 ASCII 1 Keyboard 1 Movement Vi Keybinds 0 Fullscreen 1 Font 24/CogTall Map View 50x44 Zoom Use 11% Tactical HUD 1 Map Filters NONE Filters NONE Steam 1 RUN: 5099c3c5-d88a-407f-8ed9-9fed1bb876d7